bitfinex-derivatives/quotes_BTCF0:USTF0_20251125
["timestamp","ask_amount","ask_price","bid_price","bid_amount"]
[1764047141041,0.5600326,88338.0,88337.0,0.06044976]
[1764047141340,0.5784826,88338.0,88337.0,0.06044976]
[1764047142629,0.5600326,88338.0,88337.0,0.06044976]
[1764047143034,0.5784826,88338.0,88337.0,0.06044976]
[1764047143441,0.5600326,88338.0,88337.0,0.06044976]
[1764047143639,0.5784826,88338.0,88337.0,0.06044976]
[1764047143840,0.9484826,88338.0,88337.0,0.06044976]
[1764047149447,0.6584826,88338.0,88337.0,0.06044976]
[1764047150751,0.9284826,88338.0,88337.0,0.06044976]
[1764047151341,0.9284826,88338.0,88337.0,0.07177506]
[1764047151948,0.9284826,88338.0,88337.0,0.06044976]
[1764047152548,0.9284826,88338.0,88337.0,0.03057118]
[1764047152741,0.9284826,88338.0,88337.0,0.00016976]
[1764047156449,0.0482266,88327.0,88326.0,0.00028304]
[1764047156651,1.0098092,88327.0,88326.0,0.00028304]
[1764047157852,1.0098092,88327.0,88326.0,0.00128304]
[1764047158039,1.0098092,88327.0,88326.0,0.03187304]
[1764047158439,1.0098092,88327.0,88326.0,0.03087304]
[1764047161758,1.0098092,88327.0,88326.0,0.00028304]
[1764047165657,0.0447684,88313.0,88312.0,0.04534]
[1764047165862,0.0447689,88309.0,88308.0,0.07346]
[1764047166160,0.44696693,88309.0,88308.0,0.07346]
[1764047166752,0.44696693,88309.0,88308.0,0.05621]
[1764047166955,0.4470715,88309.0,88308.0,0.05621]
[1764047167655,0.0437699,88301.0,88300.0,0.05621]
[1764047167859,0.9753525,88301.0,88300.0,0.05621]
[1764047168947,0.4198226,88301.0,88300.0,0.07346]
[1764047169148,0.5983426,88301.0,88300.0,0.07346]
[1764047169355,0.6150626,88301.0,88300.0,0.07346]
[1764047169554,0.8763925,88301.0,88300.0,0.07346]
[1764047170963,0.8650626,88301.0,88300.0,0.07346]
[1764047172557,0.5950626,88301.0,88300.0,0.07346]
[1764047173061,0.9850626,88301.0,88300.0,0.07346]
[1764047173763,0.5416226,88301.0,88300.0,0.0847901]
[1764047173962,0.5679026,88301.0,88300.0,0.07346]
[1764047176460,0.9879026,88301.0,88300.0,0.07346]
[1764047177053,0.9879026,88301.0,88300.0,0.0847901]
[1764047177455,0.9879026,88301.0,88300.0,0.07346]
[1764047177654,0.42010457,88301.0,88300.0,0.0847901]
[1764047177855,0.00010457,88301.0,88300.0,0.0847901]
[1764047178459,0.0023026,88301.0,88300.0,0.0847901]
[1764047178666,0.0285826,88301.0,88300.0,0.0847901]
[1764047178851,0.00010457,88301.0,88300.0,0.0847901]
[1764047180163,0.00010457,88301.0,88300.0,0.12522999]
[1764047180755,0.00010457,88301.0,88300.0,0.0847901]
[1764047184265,0.00010457,88301.0,88300.0,0.14552086]
[1764047184865,0.17852,88312.0,88311.0,0.0673886]
[1764047185269,0.3873,88319.0,88318.0,0.0673877]
[1764047185470,0.36299803,88319.0,88318.0,0.0673877]
[1764047185665,0.00219803,88319.0,88318.0,0.0673877]
[1764047185866,0.00016976,88321.0,88320.0,0.07148]
[1764047186964,0.55257,88334.0,88333.0,0.0673858]
[1764047187166,0.54151803,88334.0,88333.0,0.0673858]
[1764047187959,0.17852,88334.0,88333.0,0.0673858]
[1764047188264,0.3608,88338.0,88337.0,0.0673853]
[1764047188573,0.01358986,88342.0,88341.0,0.0673848]
[1764047188761,0.01578789,88342.0,88341.0,0.0673848]
[1764047188961,0.00236789,88342.0,88341.0,0.0673848]
[1764047189357,0.01578789,88342.0,88341.0,0.0673848]
[1764047190258,0.01678789,88342.0,88341.0,0.0673848]
[1764047190665,0.01778789,88342.0,88341.0,0.0673848]
[1764047191065,0.00436789,88342.0,88341.0,0.0673848]
[1764047191261,0.37639,88353.0,88352.0,0.0673834]
[1764047191466,0.37858803,88353.0,88352.0,0.0673834]
[1764047191759,0.36299803,88353.0,88352.0,0.0673834]
[1764047192360,0.39417803,88353.0,88352.0,0.0673834]
[1764047192562,0.54417803,88353.0,88352.0,0.05606]
[1764047193065,0.54617803,88353.0,88352.0,0.05606]
[1764047193580,0.54417803,88353.0,88352.0,0.05606]
[1764047193763,0.54517803,88353.0,88352.0,0.05606]
[1764047195467,0.00319803,88353.0,88352.0,0.05606]
[1764047195666,0.00319803,88353.0,88352.0,0.41686]
[1764047195967,0.00016986,88361.0,88360.0,0.0673824]
[1764047196166,0.00016986,88361.0,88360.0,0.4281824]
[1764047204083,0.00016986,88361.0,88360.0,0.4428724]
[1764047206279,0.02050789,88361.0,88360.0,0.4428724]
[1764047206482,0.02050789,88361.0,88352.0,0.3608]
[1764047206483,0.0113233,88353.0,88352.0,0.02585]
[1764047206678,0.01814,88351.0,88350.0,0.05114]
[1764047206985,0.01814,88346.0,88345.0,0.06583]
[1764047207170,0.79246223,88346.0,88345.0,0.06583]
[1764047207576,0.43246223,88346.0,88345.0,0.06583]
[1764047208675,0.38113803,88346.0,88345.0,0.06583]
[1764047209081,0.38213803,88346.0,88345.0,0.06583]
[1764047209481,0.76213803,88346.0,88345.0,0.06583]
[1764047213581,0.76213803,88346.0,88344.0,0.00016986]
[1764047213582,0.0294643,88345.0,88344.0,0.00016986]
[1764047213782,0.0294661,88331.0,88330.0,0.04054]
[1764047213981,0.76246413,88331.0,88330.0,0.06583]
[1764047215084,0.46246413,88331.0,88330.0,0.06583]
[1764047215485,0.76246413,88331.0,88330.0,0.06583]
[1764047217793,0.51246413,88331.0,88330.0,0.06583]
[1764047218584,0.39246413,88331.0,88330.0,0.06583]
[1764047221795,0.75246413,88331.0,88330.0,0.02585]
[1764047221994,0.75246413,88331.0,88322.0,0.04701976]
[1764047221995,0.0214671,88323.0,88322.0,0.04701976]
[1764047222193,0.28366513,88323.0,88322.0,0.04701976]
[1764047222793,0.05366513,88323.0,88322.0,0.04701976]
[1764047224293,0.05366513,88323.0,88322.0,0.05834696]
[1764047224294,0.00219803,88323.0,88322.0,0.05834696]
[1764047228591,0.01352513,88323.0,88322.0,0.05834696]
[1764047229202,0.01859513,88323.0,88322.0,0.05834696]
[1764047229702,0.00219803,88323.0,88322.0,0.05834696]
[1764047230198,0.00726803,88323.0,88322.0,0.05834696]
[1764047231404,0.00219803,88323.0,88322.0,0.05834696]
[1764047232605,0.00459803,88323.0,88322.0,0.05834696]
[1764047235204,0.00459803,88323.0,88322.0,0.08864609]
[1764047236105,0.00459803,88323.0,88322.0,0.05834696]
[1764047238307,0.00219803,88323.0,88322.0,0.05834696]
[1764047240109,0.00219803,88323.0,88322.0,0.09887467]
[1764047241202,0.00219803,88323.0,88322.0,0.05834696]
[1764047241402,0.3608,88328.0,88327.0,0.0564566]
[1764047241802,0.36299803,88328.0,88327.0,0.0564566]
[1764047243208,0.36299803,88328.0,88327.0,0.09696052]
[1764047243814,0.36539803,88328.0,88327.0,0.09696052]
[1764047244316,0.36299803,88328.0,88327.0,0.09696052]
[1764047244501,0.3608,88328.0,88327.0,0.09696052]
[1764047244809,0.01149486,88339.0,88337.0,0.0564553]
[1764047244810,0.00016976,88339.0,88337.0,0.0564553]
[1764047245003,0.36299803,88338.0,88337.0,0.0564553]
[1764047245614,0.00219803,88338.0,88337.0,0.0564553]
[1764047245911,0.00016976,88339.0,88338.0,0.04513]
[1764047246111,0.3608,88347.0,88345.0,0.05902]
[1764047246313,0.00319803,88346.0,88345.0,0.0703443]
[1764047247208,0.00319803,88346.0,88345.0,0.1108019]
[1764047248310,0.00319803,88346.0,88345.0,0.0703443]
[1764047249512,0.00833803,88346.0,88345.0,0.05902]
[1764047249707,0.43833803,88346.0,88345.0,0.05902]
[1764047251814,0.43833803,88346.0,88336.0,0.03651]
[1764047251815,0.0164653,88337.0,88336.0,0.03651]
[1764047252007,0.44866333,88337.0,88336.0,0.05902]
[1764047254709,0.14866333,88337.0,88336.0,0.05902]
[1764047256614,0.0164658,88333.0,88332.0,0.05902]
[1764047256814,0.39866383,88333.0,88332.0,0.05902]
[1764047258115,0.01866383,88333.0,88332.0,0.05902]
[1764047258317,0.14866383,88333.0,88332.0,0.05902]
[1764047259105,0.00733803,88333.0,88332.0,0.05902]
[1764047260620,0.41733803,88333.0,88332.0,0.02262]
[1764047260820,0.41733803,88333.0,88332.0,0.04513]
[1764047262521,0.41733803,88333.0,88332.0,0.07544669]
[1764047264721,0.13733803,88333.0,88332.0,0.07544669]
[1764047267828,0.49813803,88333.0,88332.0,0.07544669]
[1764047269027,0.49813803,88333.0,88332.0,0.08897669]
[1764047269424,0.49813803,88333.0,88332.0,0.05866]
[1764047269620,0.36813803,88333.0,88332.0,0.05866]
[1764047269825,0.36556803,88333.0,88332.0,0.05866]
[1764047270324,0.36813803,88333.0,88332.0,0.05866]
[1764047276030,0.36299803,88333.0,88332.0,0.05866]
[1764047276334,0.53932,88341.0,88340.0,0.05782]
[1764047276535,0.57408803,88341.0,88340.0,0.05782]
[1764047276734,0.54408803,88341.0,88340.0,0.05782]
[1764047277321,0.54665803,88341.0,88340.0,0.05782]
[1764047278937,0.54151803,88341.0,88340.0,0.05782]
[1764047279434,0.54408803,88341.0,88340.0,0.05782]
[1764047279738,0.54151803,88341.0,88340.0,0.05782]
[1764047280036,0.54408803,88341.0,88340.0,0.05782]
[1764047280535,0.36299803,88341.0,88340.0,0.05782]
[1764047281330,0.36299803,88341.0,88340.0,0.0982776]
[1764047281632,0.36813803,88341.0,88340.0,0.05782]
[1764047281834,0.74813803,88341.0,88340.0,0.05782]
[1764047282228,0.74813803,88341.0,88340.0,0.09830849]
[1764047282428,0.48813803,88341.0,88340.0,0.09830849]
[1764047282724,0.36813803,88341.0,88340.0,0.09830849]
[1764047282928,0.36299803,88341.0,88340.0,0.09830849]
[1764047283330,0.36556803,88341.0,88340.0,0.05782]
[1764047283839,0.36813803,88341.0,88340.0,0.05782]
[1764047284741,0.36813803,88341.0,88340.0,0.09830849]
[1764047285239,0.36813803,88341.0,88340.0,0.05782]
[1764047285641,0.36813803,88341.0,88340.0,0.04786]
[1764047286241,0.74813803,88341.0,88340.0,0.07442278]
[1764047286544,0.0644749,88340.0,88339.0,0.03035278]
[1764047286741,0.44667293,88340.0,88338.0,0.03035278]
[1764047286951,0.04319,88339.0,88338.0,0.03035278]
[1764047287152,0.41538803,88339.0,88338.0,0.03035278]
[1764047287854,0.04319,88337.0,88336.0,0.03035278]
[1764047288053,0.47538803,88337.0,88336.0,0.03035278]
[1764047288754,0.26538803,88337.0,88336.0,0.07442278]
[1764047295258,0.04538803,88337.0,88336.0,0.07442278]
[1764047297246,0.04538803,88337.0,88336.0,0.04407]
[1764047303860,0.05671333,88337.0,88336.0,0.04407]
[1764047307863,0.04468,88336.0,88335.0,0.03037343]
[1764047308066,0.04468,88334.0,88333.0,0.08379923]
[1764047308258,0.04687803,88334.0,88333.0,0.07247343]
[1764047309659,0.04687803,88334.0,88333.0,0.0421]
[1764047310469,0.04468,88332.0,88331.0,0.05146343]
[1764047310769,0.0560061,88331.0,88330.0,0.03037343]
[1764047310971,0.04468,88330.0,88329.0,0.0421]
[1764047311166,0.11687803,88330.0,88329.0,0.0534263]
[1764047313766,0.11687803,88330.0,88329.0,0.0421]
[1764047313965,0.37687803,88330.0,88329.0,0.02109]
[1764047314474,0.37687803,88330.0,88329.0,0.0421]
[1764047319675,0.06687803,88330.0,88329.0,0.0421]
[1764047319881,0.04687803,88330.0,88329.0,0.0421]
[1764047320981,0.04687803,88330.0,88329.0,0.08258849]
[1764047323381,0.04687803,88330.0,88329.0,0.0421]
[1764047326480,0.04687803,88330.0,88329.0,0.08258849]
[1764047326880,0.04687803,88330.0,88329.0,0.0421]
[1764047327383,0.00219803,88330.0,88329.0,0.0421]
[1764047327578,0.04573976,88338.0,88337.0,0.04485]
[1764047327786,0.04573976,88338.0,88337.0,0.07519472]
[1764047327983,0.04793779,88338.0,88337.0,0.07519472]
[1764047328287,0.04793779,88338.0,88337.0,0.08652002]
[1764047331087,0.04793779,88338.0,88337.0,0.0561753]
[1764047331679,0.02563779,88338.0,88337.0,0.08652002]
[1764047331983,0.04793779,88338.0,88337.0,0.08652002]
[1764047332682,0.04793779,88338.0,88337.0,0.0561753]
[1764047335390,0.04793779,88338.0,88337.0,0.04485]
[1764047340787,0.42793779,88338.0,88337.0,0.04485]
[1764047341591,0.42793779,88338.0,88337.0,0.04507]
[1764047341893,0.04493,88335.0,88334.0,0.0303491]
[1764047342197,0.04493,88335.0,88329.0,0.04045962]
[1764047342198,0.0562559,88332.0,88331.0,0.02222]
[1764047342392,0.0562566,88327.0,88326.0,0.09673632]
[1764047342585,0.05845463,88327.0,88326.0,0.0562767]
[1764047343686,0.42845463,88327.0,88326.0,0.0562767]
[1764047344390,0.17845463,88327.0,88326.0,0.0562767]
[1764047345496,0.48845463,88327.0,88326.0,0.0562767]
[1764047351397,0.48845463,88327.0,88326.0,0.02222]
[1764047351703,0.0560571,88323.0,88322.0,0.11634772]
[1764047351998,0.44825513,88323.0,88322.0,0.11634772]
[1764047352399,0.43692803,88323.0,88322.0,0.11634772]
[1764047352896,0.43692803,88323.0,88322.0,0.05561696]
[1764047354895,0.43692803,88323.0,88322.0,0.01149696]
[1764047355196,0.43692803,88323.0,88322.0,0.05561696]
[1764047362403,0.04692803,88323.0,88322.0,0.05561696]
[1764047362706,0.00219803,88323.0,88322.0,0.05561696]
[1764047363504,0.02516803,88323.0,88322.0,0.05561696]
[1764047363904,0.04692803,88323.0,88322.0,0.05561696]
[1764047364500,0.49692803,88323.0,88322.0,0.05561696]
[1764047366310,0.49692803,88323.0,88322.0,0.02127976]
[1764047366711,0.49692803,88323.0,88322.0,0.04428976]
[1764047368113,0.49692803,88323.0,88322.0,0.02127976]
[1764047368309,0.49692803,88323.0,88322.0,0.00016976]
[1764047368816,0.49692803,88323.0,88322.0,0.02127976]
[1764047369416,0.49692803,88323.0,88322.0,0.04428976]
[1764047371205,0.16692803,88323.0,88322.0,0.04428976]
[1764047371811,0.04692803,88323.0,88322.0,0.04428976]
[1764047374007,0.02516803,88323.0,88322.0,0.04428976]
[1764047374515,0.04692803,88323.0,88322.0,0.04428976]
[1764047383716,0.42692803,88323.0,88322.0,0.00016976]
[1764047384018,0.04422,88316.0,88315.0,0.0405409]
[1764047384219,0.04422,88315.0,88314.0,0.0405409]
[1764047384420,0.0555482,88314.0,88313.0,0.0405409]
[1764047384619,0.48774623,88314.0,88313.0,0.0405409]
[1764047384817,0.04422,88313.0,88312.0,0.0405409]
[1764047385015,0.47641803,88313.0,88312.0,0.0405409]
[1764047385819,0.47641803,88313.0,88312.0,0.0415409]
[1764047386228,0.47641803,88313.0,88312.0,0.001]
[1764047386525,0.47641803,88313.0,88312.0,0.03138758]
[1764047386717,0.47641803,88313.0,88312.0,0.001]
[1764047391622,0.47641803,88313.0,88297.0,0.04632]
[1764047391623,0.00588,88298.0,88297.0,0.04632]
[1764047391828,0.61887803,88298.0,88297.0,0.04632]
[1764047392219,0.00588,88291.0,88290.0,0.3608]
[1764047392420,0.0172117,88287.0,88275.0,0.01348]
[1764047392619,1.00868973,88287.0,88286.0,0.02349317]
[1764047392825,0.72635803,88287.0,88286.0,0.04660317]
[1764047393231,0.92635803,88287.0,88286.0,0.04660317]
[1764047396531,0.92635803,88287.0,88286.0,0.00028317]
[1764047399830,0.92635803,88287.0,88286.0,0.04374317]
[1764047400033,0.74787803,88287.0,88286.0,0.04374317]
[1764047400224,0.92643803,88287.0,88286.0,0.04374317]
[1764047401430,0.92643803,88287.0,88286.0,0.00028317]
[1764047402934,0.92643803,88287.0,88286.0,3.17e-06]
[1764047403635,1.03970563,88287.0,88286.0,3.17e-06]
[1764047405142,1.03970563,88287.0,88286.0,0.04346317]
[1764047405730,0.86114563,88287.0,88286.0,0.04346317]
[1764047406044,0.92643803,88287.0,88286.0,0.04346317]
[1764047407045,0.60643803,88287.0,88286.0,0.04346317]
[1764047428770,0.54643803,88287.0,88286.0,0.04346317]
[1764047429073,0.18563803,88287.0,88286.0,0.04346317]
[1764047429255,0.18563803,88287.0,88286.0,0.08400407]
[1764047429455,0.37562066,88295.0,88294.0,0.04274]
[1764047429765,0.37449869,88295.0,88294.0,0.04274]
[1764047429960,0.36482789,88295.0,88294.0,0.0540708]
[1764047430269,0.36648789,88295.0,88294.0,0.0540708]
[1764047430468,0.36748789,88295.0,88294.0,0.0540708]
[1764047431673,0.36416789,88295.0,88294.0,0.0540708]
[1764047432170,0.36196986,88295.0,88294.0,0.0540708]
[1764047433472,0.36096986,88295.0,88294.0,0.0540708]
[1764047434570,0.00016986,88295.0,88294.0,0.0540708]
[1764047435968,0.00348986,88295.0,88294.0,0.0540708]
[1764047436173,0.00568789,88295.0,88294.0,0.0540708]
[1764047437968,0.00402789,88295.0,88294.0,0.0540708]
[1764047438478,0.00236789,88295.0,88294.0,0.0540708]
[1764047439172,0.00568789,88295.0,88294.0,0.04274]
[1764047441574,0.00568789,88295.0,88294.0,0.0540708]
[1764047444380,0.00568789,88295.0,88294.0,0.04274]
[1764047451087,0.00402789,88295.0,88294.0,0.04274]
[1764047451689,0.00568789,88295.0,88294.0,0.04274]
[1764047454192,0.00568789,88295.0,88294.0,0.08327721]
[1764047455992,0.00348986,88295.0,88294.0,0.08327721]
[1764047456182,0.00016986,88295.0,88294.0,0.04274]
[1764047458503,0.3608,88306.0,88305.0,0.0558894]
[1764047460798,0.36665803,88306.0,88305.0,0.04456]
[1764047461290,0.36765803,88306.0,88305.0,0.04456]
[1764047461593,0.36765803,88306.0,88305.0,0.09644276]
[1764047463586,0.36765803,88306.0,88305.0,0.0558894]
[1764047464598,0.00685803,88306.0,88305.0,0.0558894]
[1764047464796,0.00502803,88306.0,88305.0,0.0558894]
[1764047464989,0.00685803,88306.0,88305.0,0.04456]
[1764047469900,0.00502803,88306.0,88305.0,0.04456]
[1764047470101,0.00685803,88306.0,88305.0,0.04456]
[1764047470897,0.00319803,88306.0,88305.0,0.04456]
[1764047471798,0.01515816,88314.0,88313.0,0.0564784]
[1764047471999,0.01735619,88314.0,88313.0,0.0564784]
[1764047473202,0.39735619,88314.0,88313.0,0.04515]
[1764047474198,0.10735619,88314.0,88313.0,0.04515]
[1764047474411,0.10835619,88314.0,88313.0,0.04515]
[1764047475604,0.00702789,88314.0,88313.0,0.04515]
[1764047476502,0.36782789,88314.0,88313.0,0.04515]
[1764047476898,0.36416789,88314.0,88313.0,0.04515]
[1764047477206,0.26552331,88323.0,88321.0,0.04515]
[1764047477207,0.0149872,88322.0,88321.0,0.04515]
[1764047477408,0.06718523,88322.0,88321.0,0.04515]
[1764047478209,0.00585803,88322.0,88321.0,0.04515]
[1764047480010,0.00219803,88322.0,88321.0,0.04515]
[1764047481308,0.00585803,88322.0,88321.0,0.04515]
[1764047483997,0.00402803,88322.0,88321.0,0.04515]
[1764047484203,0.00585803,88322.0,88321.0,0.04515]
[1764047490316,0.00219803,88322.0,88321.0,0.04515]
[1764047491315,0.00402803,88322.0,88321.0,0.04515]
[1764047491817,0.00585803,88322.0,88321.0,0.04515]
[1764047492012,0.44585803,88322.0,88321.0,0.04515]
[1764047492218,0.04594,88314.0,88310.0,0.03036748]
[1764047492420,0.04594,88314.0,88310.0,0.04515]
[1764047492421,0.05946663,88311.0,88310.0,0.04515]
[1764047492720,0.04594,88307.0,88306.0,0.04515]
[1764047493017,0.42946713,88307.0,88306.0,0.04515]
[1764047494113,0.12946713,88307.0,88306.0,0.0574793]
[1764047495506,0.34946713,88307.0,88306.0,0.04615]
[1764047496319,0.07946713,88307.0,88306.0,0.04615]
[1764047496508,0.02219803,88307.0,88306.0,0.04615]
[1764047496713,0.06813803,88307.0,88306.0,0.04615]
[1764047496921,0.04813803,88307.0,88306.0,0.04615]
[1764047508326,0.44813803,88307.0,88306.0,0.04615]
[1764047508728,0.80893803,88307.0,88306.0,0.04615]
[1764047510326,0.44813803,88307.0,88306.0,0.04615]
[1764047510527,0.80893803,88307.0,88306.0,0.04615]
[1764047510735,0.54893803,88307.0,88306.0,0.04615]
[1764047510928,0.75893803,88307.0,88306.0,0.04615]
[1764047512331,0.75893803,88307.0,88306.0,0.001]
[1764047512533,0.75893803,88307.0,88297.0,0.00016986]
[1764047512534,0.0550903,88298.0,88297.0,0.00016986]
[1764047512739,0.98656833,88298.0,88297.0,0.00016986]
[1764047513435,0.98656833,88298.0,88280.0,0.07450262]
[1764047513436,0.0113317,88287.0,88280.0,0.07450262]
[1764047513631,0.75432973,88287.0,88280.0,0.07450262]
[1764047513833,0.75432973,88287.0,88280.0,0.04417]
[1764047516131,0.93284973,88287.0,88280.0,0.04417]
[1764047519338,0.93284973,88287.0,88279.0,0.00012796]
[1764047520637,0.93284973,88287.0,88279.0,0.02128796]
[1764047521244,1.04611733,88287.0,88279.0,0.02128796]
[1764047521541,1.04611733,88287.0,88279.0,0.04296796]
[1764047521749,1.04611733,88287.0,88279.0,0.00012796]
[1764047523044,0.0557044,88266.0,88265.0,0.07317262]
[1764047523242,0.43790243,88266.0,88265.0,0.04284]
[1764047523840,0.38,88266.0,88265.0,0.4677645]
[1764047524039,0.12910207,88280.0,88279.0,0.0321727]
[1764047524346,0.04669599,88280.0,88279.0,0.0321727]
[1764047526250,0.00232599,88280.0,88279.0,0.0321727]
[1764047527135,0.00012796,88280.0,88279.0,0.0321727]
[1764047529450,0.00232599,88280.0,88279.0,0.0321727]
[1764047529847,0.02562599,88280.0,88279.0,0.0321727]
[1764047533249,0.04844599,88280.0,88279.0,0.0321727]
[1764047536154,0.02562599,88280.0,88279.0,0.0321727]
[1764047536652,0.04844599,88280.0,88279.0,0.0321727]
[1764047539354,0.00232599,88280.0,88279.0,0.07259933]
[1764047539550,0.00012796,88280.0,88279.0,0.07259933]
[1764047540245,0.00012796,88280.0,88279.0,0.0321727]
[1764047542453,0.00012796,88280.0,88279.0,0.09281264]
[1764047543852,0.00016986,88288.0,88287.0,0.0321717]
[1764047544056,0.00016986,88288.0,88287.0,0.3929717]
[1764047544355,0.00016986,88288.0,88287.0,0.45378932]
[1764047544659,0.00016986,88288.0,88287.0,0.3929717]
[1764047545244,0.02212986,88288.0,88287.0,0.4537609]
[1764047545450,0.04494986,88288.0,88287.0,0.4537609]
[1764047547256,0.04494986,88288.0,88287.0,0.3929717]
[1764047550861,0.05770986,88288.0,88287.0,0.3929717]
[1764047551962,0.00016986,88288.0,88287.0,0.3929717]
[1764047553260,0.00016986,88288.0,88287.0,0.4537609]
[1764047553757,0.02212986,88288.0,88287.0,0.4537609]
[1764047553958,0.04494986,88288.0,88287.0,0.4537609]
[1764047555266,0.04494986,88288.0,88287.0,0.45376153]
[1764047556168,0.04494986,88288.0,88287.0,0.3929717]
[1764047557068,0.02212986,88288.0,88287.0,0.3929717]
[1764047557671,0.04494986,88288.0,88287.0,0.3929717]
[1764047564274,0.05840986,88288.0,88287.0,0.3929717]
[1764047565970,0.06060789,88288.0,88287.0,0.3929717]
[1764047567174,0.06060789,88288.0,88287.0,0.3721317]
[1764047567377,0.06060789,88288.0,88273.0,0.1202]
[1764047567378,0.0697752,88260.0,88259.0,0.10121794]
[1764047567571,0.04498,88249.0,88248.0,0.05748]
[1764047567877,0.41717803,88249.0,88248.0,0.04351]
[1764047568473,0.77797803,88249.0,88248.0,0.04351]
[1764047568872,0.80067871,88249.0,88248.0,0.04351]
[1764047569266,0.77797803,88249.0,88248.0,0.02105]
[1764047569463,0.80065416,88249.0,88248.0,0.02105]
[1764047570175,0.77797803,88249.0,88248.0,0.04351]
[1764047575379,0.73299803,88249.0,88248.0,0.04351]
[1764047575685,0.77797803,88249.0,88248.0,0.04351]
[1764047580873,0.75531803,88249.0,88248.0,0.04351]
[1764047581074,0.77693803,88249.0,88248.0,0.04351]
[1764047581274,0.41613803,88249.0,88248.0,0.04351]
[1764047581474,0.77693803,88249.0,88248.0,0.04351]
[1764047586879,0.77693803,88249.0,88246.0,0.0002833]
[1764047586880,0.0435,88247.0,88246.0,0.0002833]
[1764047587082,0.48569803,88247.0,88246.0,0.0002833]
[1764047588283,0.48569803,88247.0,88246.0,0.0012833]
[1764047588788,0.48569803,88247.0,88246.0,0.0002833]
[1764047589287,0.0113371,88245.0,88230.0,0.011339]
[1764047589491,0.0435,88226.0,88225.0,0.0700597]
[1764047589786,0.04569803,88226.0,88225.0,0.0700597]
[1764047591882,0.04569803,88226.0,88225.0,0.0710597]
[1764047593282,0.07569803,88226.0,88225.0,0.05972]
[1764047594092,0.06569803,88226.0,88225.0,0.05972]
[1764047594294,0.00219803,88226.0,88225.0,0.05972]
[1764047595295,0.02352803,88226.0,88225.0,0.05972]
[1764047595497,0.04583803,88226.0,88225.0,0.05972]
[1764047595696,0.02352803,88226.0,88225.0,0.05972]
[1764047596192,0.00219803,88226.0,88225.0,0.05972]
[1764047596390,0.05514696,88246.0,88245.0,0.05604]
[1764047596586,0.48851377,88246.0,88245.0,0.05823803]
[1764047597489,0.48851377,88246.0,88245.0,0.04491803]
[1764047597986,0.48951377,88246.0,88245.0,0.04491803]
[1764047599487,0.48951377,88246.0,88245.0,0.00219803]
[1764047599688,0.48951377,88246.0,88245.0,0.02344803]
[1764047601499,0.48951377,88246.0,88245.0,0.04491803]
[1764047601698,0.47817677,88246.0,88245.0,0.04491803]
[1764047604001,0.47817677,88246.0,88245.0,0.05823803]
[1764047605497,0.45586677,88246.0,88245.0,0.05823803]
[1764047605705,0.43453677,88246.0,88245.0,0.05823803]
[1764047606092,0.45586677,88246.0,88245.0,0.05823803]
[1764047606492,0.47817677,88246.0,88245.0,0.05823803]
[1764047606695,0.43323263,88246.0,88245.0,0.05823803]
[1764047607002,0.43223263,88246.0,88245.0,0.05823803]
[1764047608201,0.41090263,88246.0,88245.0,0.05823803]
[1764047610102,0.43223263,88246.0,88245.0,0.05823803]
[1764047610301,0.45454263,88246.0,88245.0,0.05823803]
[1764047613403,0.45454263,88246.0,88245.0,0.04491803]
[1764047614515,0.45454263,88246.0,88235.0,0.08520329]
[1764047614516,0.011338,88239.0,88237.0,0.0113381]
[1764047614700,0.05037,88240.0,88239.0,0.0113378]
[1764047614903,0.48437267,88240.0,88239.0,0.03478583]
[1764047616205,0.48437267,88240.0,88239.0,0.05625583]
[1764047617410,0.49571037,88240.0,88239.0,0.04491803]
[1764047617710,0.48437267,88240.0,88239.0,0.04491803]
[1764047619716,0.50711364,88240.0,88239.0,0.04491803]
[1764047620210,0.50711364,88240.0,88239.0,0.00219803]
[1764047620611,0.50711364,88240.0,88239.0,0.04491803]
[1764047622809,0.51384364,88240.0,88239.0,0.00219803]
[1764047623005,0.04512,88232.0,88231.0,0.04415]
[1764047623204,0.04512,88232.0,88231.0,0.02216]
[1764047623205,0.40665267,88232.0,88231.0,0.02216]
[1764047623406,0.04512,88227.0,88226.0,0.0554895]
[1764047623705,0.01862368,88227.0,88226.0,0.05768753]
[1764047624306,0.01862368,88227.0,88226.0,0.11823252]
[1764047624610,0.01862368,88227.0,88226.0,0.05768753]
[1764047625413,0.00073267,88227.0,88226.0,0.05868753]
[1764047631216,0.00073267,88227.0,88226.0,0.11967209]
[1764047631412,0.00073267,88227.0,88226.0,0.05868753]
[1764047631613,0.04528996,88246.0,88239.0,0.0113379]
[1764047631916,0.44528996,88246.0,88245.0,0.07083513]
[1764047632711,0.44528996,88246.0,88245.0,0.04634803]
[1764047636315,0.44528996,88246.0,88245.0,0.00219803]
[1764047636620,0.46803897,88246.0,88245.0,0.00219803]
[1764047636809,0.0544783,88236.0,88235.0,0.04337]
[1764047637011,0.1844783,88236.0,88235.0,0.02408803]
[1764047637412,0.1844783,88236.0,88235.0,0.04556803]
[1764047637822,0.1844783,88236.0,88235.0,0.02408803]
[1764047638320,0.1844783,88236.0,88235.0,0.04556803]
[1764047640627,0.1844783,88236.0,88235.0,0.02408803]
[1764047641413,0.4344783,88236.0,88235.0,0.00219803]
[1764047643128,0.42314,88236.0,88235.0,0.05690643]
[1764047643322,0.11314,88236.0,88235.0,0.07048643]
[1764047643623,0.38191,88237.0,88236.0,0.04337]
[1764047643833,0.84394,88237.0,88236.0,0.04556803]
[1764047648533,0.48314,88237.0,88236.0,0.04556803]
[1764047651133,0.48275,88237.0,88236.0,0.04556803]
[1764047653635,0.44,88237.0,88236.0,0.04556803]
[1764047653932,0.44,88237.0,88236.0,0.10655003]
[1764047654127,0.44,88237.0,88236.0,0.04556803]
[1764047655435,0.46168,88237.0,88236.0,0.04556803]
[1764047655642,0.48332,88237.0,88236.0,0.04556803]
[1764047657030,0.44,88237.0,88236.0,0.04556803]
[1764047658335,0.46168,88237.0,88236.0,0.04556803]
[1764047659042,0.48332,88237.0,88236.0,0.04556803]
[1764047678548,0.48332,88237.0,88236.0,0.00219803]
[1764047678753,0.48332,88237.0,88236.0,0.06320479]
[1764047678953,0.48332,88237.0,88236.0,0.06420479]
[1764047679961,0.48332,88237.0,88236.0,0.06320479]
[1764047681455,0.48332,88237.0,88236.0,0.00219803]
[1764047684361,0.48332,88237.0,88236.0,0.06322009]
[1764047688666,0.50625875,88237.0,88236.0,0.00219803]
[1764047691071,0.50625875,88237.0,88236.0,0.02405803]
[1764047691265,0.50625875,88237.0,88236.0,0.04712803]
[1764047693271,0.50625875,88237.0,88236.0,0.06019803]
[1764047693576,0.48332,88237.0,88236.0,0.12122009]
[1764047696174,0.44,88237.0,88236.0,0.42099803]
[1764047698179,0.44,88237.0,88236.0,0.42199803]